fUSD/lending_fUSD_20251215
["ID","MTS","AMOUNT","RATE_DAILY","PERIOD"]
[398539190,1765811433919,-150.0,0.00017088,2]
[398539191,1765811433928,-150.0,0.00017088,2]
[398539192,1765811433937,-150.65844906,0.00017088,2]
[398539193,1765811433946,-150.0,0.00017088,2]
[398539194,1765811433955,-150.0,0.00017088,2]
[398539195,1765811433964,-150.0,0.00017088,2]
[398539196,1765811433974,-166.89,0.00017192,2]
[398539197,1765811433983,-11782.69645269,0.00017192,2]
[398539198,1765811433993,-5026.24879584,0.00017215,2]
[398539199,1765811434002,-552.37,0.0001726,3]
[398539200,1765811434011,-1477.23,0.0001726,2]
[398539201,1765811434020,-393.72,0.0001726,2]
[398539202,1765811434029,-150.0,0.0001726,2]
[398539203,1765811434038,-150.0,0.0001726,2]
[398539204,1765811434048,-150.0,0.0001726,2]
[398539205,1765811434057,-150.0,0.0001726,2]
[398539206,1765811434066,-150.0,0.0001726,2]
[398539207,1765811434075,-250.0,0.00017288,2]
[398539208,1765811434085,-150.0,0.00017299,2]
[398539209,1765811434094,-150.0,0.00017299,2]
[398539210,1765811434103,-250.0,0.00017318,2]
[398539211,1765811434112,-420.0,0.00017324,2]
[398539212,1765811434121,-420.0,0.00017324,2]
[398539213,1765811434130,-420.0,0.00017324,2]
[398539214,1765811434141,-150.0,0.00017325,2]
[398539215,1765811434151,-767.0,0.00017325,2]
[398539216,1765811434160,-195.0,0.00017329,2]
[398539217,1765811434170,-300.0,0.00017329,2]
[398539218,1765811434179,-256.25393423,0.00017329,2]
[398539219,1765811434188,-300.0,0.00017329,2]
[398539220,1765811434197,-300.0,0.00017329,2]
[398539221,1765811434206,-300.0,0.00017329,2]
[398539222,1765811434216,-300.0,0.00017329,2]
[398539223,1765811434226,-300.0,0.00017329,2]
[398539224,1765811434235,-773.27679028,0.00017353,2]
[398539225,1765811434244,-195.0,0.00017365,2]
[398539226,1765811434253,-300.0,0.00017365,2]
[398539227,1765811434263,-360.47752574,0.00017365,2]
[398539228,1765811434272,-169.87957931,0.00017373,2]
[398539229,1765811434282,-6085.0,0.00017397,2]
[398539230,1765811434291,-150.0,0.00017404,2]
[398539231,1765811434300,-150.0,0.00017404,2]
[398539232,1765811434310,-1680.0,0.00017412,2]
[398539233,1765811434320,-342.68248713,0.00017431,2]
[398539234,1765811434329,-5026.24879584,0.00017456,2]
[398539235,1765811434338,-223.2909665,0.00017459,2]
[398539236,1765811434348,-150.0,0.00017467,2]
[398539237,1765811434359,-11510.14513573,0.00017477,2]
[398539238,1765811434373,-272.55131696,0.00017477,2]
[398539239,1765811434383,-2000.0,0.000175,2]
[398539240,1765811434393,-1000.0,0.000175,2]
[398539241,1765811434402,-150.0,0.0001751,2]
[398539242,1765811434412,-150.0,0.0001751,2]
[398539243,1765811434421,-552.37,0.00017534,4]
[398539244,1765811434431,-1477.23,0.00017534,2]
[398539245,1765811434440,-150.0,0.00017562,2]
[398539246,1765811434450,-150.0,0.00017562,2]
[398539247,1765811434459,-773.27679028,0.00017662,2]
[398539248,1765811434469,-5026.24879584,0.00017697,2]
[398539249,1765811434478,-1000.0,0.00017704,2]
[398539250,1765811434488,-150.0,0.00017721,2]
[398539251,1765811434498,-150.0,0.00017721,2]
[398539252,1765811434507,-150.0,0.00017721,2]
[398539253,1765811434516,-150.0,0.00017721,2]
[398539254,1765811434526,-11782.69645269,0.00017761,2]
[398539255,1765811434535,-6414.76,0.00017768,2]
[398539256,1765811434544,-150.0,0.000178,2]
[398539257,1765811434553,-552.37,0.00017808,5]
[398539258,1765811434562,-1477.23,0.00017808,2]
[398539259,1765811434572,-150.0,0.00017847,2]
[398539260,1765811434582,-1747.904,0.00017889,2]
[398539261,1765811434591,-1607.0,0.00017889,2]
[398539262,1765811434601,-1324.0,0.00017889,2]
[398539263,1765811434611,-611.0,0.00017889,2]
[398539264,1765811434622,-1261.0,0.00017889,2]
[398539265,1765811434631,-589.0,0.00017889,2]
[398539266,1765811434642,-1600.0,0.00017908,2]
[398539267,1765811434651,-911.0,0.00017912,2]
[398539268,1765811434667,-1196.0,0.00017912,2]
[398539269,1765811434676,-2299.25932094,0.00017913,2]
[398539270,1765811434688,-126.74067906,0.00017913,2]
[398539271,1765811434697,-563.0,0.00017913,2]
[398539272,1765811434707,-150.0,0.00017932,2]
[398539273,1765811434715,-150.0,0.00017932,2]
[398539274,1765811434725,-5026.24879584,0.00017937,2]
[398539275,1765811434734,-773.27679028,0.00017972,2]
[398539276,1765811434744,-200.516518,0.00018,2]
[398539277,1765811434754,-150.0,0.00018037,2]
[398539278,1765811434764,-150.0,0.00018037,2]
[398539279,1765811434773,-150.0,0.00018037,2]
[398539280,1765811434782,-150.0,0.00018037,2]
[398539281,1765811434791,-150.0,0.00018037,2]
[398539282,1765811434802,-11782.69645269,0.00018046,2]
[398539283,1765811434811,-552.37,0.00018082,6]
[398539284,1765811434820,-1477.23,0.00018082,2]
[398539285,1765811434829,-150.0,0.00018082,2]
[398539286,1765811434839,-1269.87,0.00018082,2]
[398539287,1765811434848,-150.0,0.00018082,2]
[398539288,1765811434857,-150.0,0.00018082,2]
[398539289,1765811434867,-150.0,0.00018082,2]
[398539290,1765811434877,-1217.45,0.00018082,2]
[398539291,1765811434888,-1217.45,0.00018082,2]
[398539292,1765811434897,-150.0,0.00018082,2]
[398539293,1765811434906,-356.12,0.00018082,2]
[398539294,1765811434915,-178.26,0.00018082,2]
[398539295,1765811434924,-170.46,0.00018082,2]
[398539296,1765811434933,-150.0,0.00018082,2]
[398539297,1765811434942,-150.0,0.00018082,2]
[398539298,1765811434953,-178.26,0.00018082,2]
[398539299,1765811434962,-1195.03322879,0.00018082,2]
[398539300,1765811434974,-22.41677121,0.00018082,2]
[398539301,1765811434983,-170.46,0.00018082,2]
[398539302,1765811434992,-70.50159726,0.00018082,2]
[398539303,1765811435003,-79.49840274,0.00018082,2]
[398539304,1765811435013,-170.46,0.00018082,2]
[398539305,1765811435022,-150.0,0.00018082,2]
[398539306,1765811435031,-1217.45,0.00018082,2]
[398539307,1765811435040,-1217.45,0.00018082,2]
[398539308,1765811435048,-178.26,0.00018082,2]
[398539309,1765811435058,-150.0,0.00018082,2]
[398539310,1765811435066,-340.67,0.00018082,2]
[398539311,1765811435075,-178.26,0.00018082,2]
[398539312,1765811435084,-150.0,0.00018082,2]
[398539313,1765811435094,-170.46,0.00018082,2]
[398539314,1765811435103,-150.0,0.00018082,2]
[398539315,1765811435112,-1217.45,0.00018082,2]
[398539316,1765811435122,-178.26,0.00018082,2]
[398539317,1765811435131,-178.26,0.00018082,2]
[398539318,1765811435142,-356.5,0.00018082,2]
[398539319,1765811435151,-170.46,0.00018082,2]
[398539320,1765811435161,-2296.87,0.00018082,2]
[398539321,1765811435172,-150.0,0.00018082,2]
[398539322,1765811435181,-1217.45,0.00018082,2]
[398539323,1765811435191,-553.28,0.00018082,2]
[398539324,1765811435199,-178.26,0.00018082,2]
[398539325,1765811435209,-1217.45,0.00018082,2]
[398539326,1765811435218,-178.26,0.00018082,2]
[398539327,1765811435227,-170.46,0.00018082,2]
[398539328,1765811435236,-178.26,0.00018082,2]
[398539329,1765811435248,-2.70284635,0.00018082,2]
[398539330,1765811435279,-147.29715365,0.00018082,2]
[398539331,1765811435294,-1298.0863911,0.00018082,2]
[398539333,1765811438030,-481.25235646,0.00017016,2]
[398539334,1765811438044,-834.43387959,0.00017913,2]
[398539335,1765811438061,-1174.0667096,0.00017913,2]
[398539336,1765811438077,-3568.48841081,0.00017913,2]
[398539337,1765811438092,-1136.6336089,0.00018082,2]
[398539338,1765811438107,-1105.86,0.00018082,2]
[398539339,1765811438121,-170.46,0.00018082,2]
[398539340,1765811438135,-340.92,0.00018082,2]
[398539341,1765811438150,-553.28,0.00018082,2]
[398539342,1765811438165,-1217.45,0.00018082,2]
[398539343,1765811438180,-553.28,0.00018082,2]
[398539344,1765811438194,-170.46,0.00018082,2]
[398539345,1765811438208,-464.18,0.00018082,2]
[398539346,1765811438223,-150.0,0.00018082,2]
[398539347,1765811438237,-170.46,0.00018082,2]
[398539348,1765811438252,-553.28,0.00018082,2]
[398539350,1765811438266,-170.46,0.00018082,2]
[398539351,1765811438280,-150.0,0.00018082,2]
[398539352,1765811438295,-553.28,0.00018082,2]
[398539353,1765811438310,-170.46,0.00018082,2]
[398539354,1765811438325,-1106.5,0.00018082,2]
[398539355,1765811438338,-150.0,0.00018082,2]
[398539357,1765811438352,-150.0,0.00018142,2]
[398539359,1765811438366,-150.0,0.00018142,2]
[398539362,1765811438381,-5026.24879584,0.00018178,2]
[398539364,1765811438395,-150.0,0.00018227,2]
[398539366,1765811438409,-177.227,0.00018239,2]
[398539368,1765811438423,-150.0,0.00018239,2]
[398539369,1765811438437,-150.0,0.00018239,2]
[398539370,1765811438452,-150.0,0.00018239,2]
[398539371,1765811438466,-150.0,0.00018239,2]
[398539372,1765811438480,-150.0,0.00018239,2]
[398539373,1765811438493,-311.1,0.00018252,2]
[398539374,1765811438507,-127.06194867,0.00018274,2]
[398539375,1765811438525,-22.93805133,0.00018274,2]
[398539376,1765811438538,-773.27679028,0.00018281,2]
[398539377,1765811438552,-200.0,0.00018289,2]
[398539378,1765811438566,-11782.69645269,0.00018331,2]
[398539379,1765811438580,-150.0,0.00018353,2]
[398539380,1765811438594,-150.0,0.00018353,2]
[398539381,1765811438611,-150.0,0.00018353,2]
[398539382,1765811438624,-150.0,0.00018353,2]
[398539383,1765811438638,-552.37,0.00018356,7]
[398539384,1765811438653,-1477.23,0.00018356,2]
[398539385,1765811438667,-45247.51,0.00018356,2]
[398539386,1765811438680,-627.7,0.00018406,2]
[398539387,1765811438696,-5026.24879584,0.00018419,2]
[398539388,1765811438710,-1521.0,0.0001843,2]
[398539389,1765811438723,-150.0,0.0001848,2]
[398539390,1765811438737,-198.79894265,0.0001848,2]
[398539391,1765811438750,-500.0,0.0001848,2]
[398539392,1765811438763,-500.0,0.0001848,2]
[398539393,1765811438777,-150.0,0.00018493,2]
[398539394,1765811438790,-500.0,0.00018493,2]
[398539395,1765811438803,-150.0,0.00018493,2]
[398539396,1765811438816,-150.0,0.00018493,2]
[398539397,1765811438829,-150.0,0.00018493,2]
[398539398,1765811438842,-155.42907447,0.00018493,2]
[398539399,1765811438856,-150.0,0.00018493,2]
[398539400,1765811438869,-200.0,0.00018493,2]
[398539401,1765811438883,-500.0,0.00018493,2]
[398539402,1765811438896,-500.0,0.00018493,2]
[398539403,1765811438912,-1728.0,0.00018493,2]
[398539404,1765811438926,-150.0,0.00018493,2]
[398539405,1765811438940,-419.0,0.00018493,2]
[398539406,1765811438954,-150.0,0.00018493,2]
[398539407,1765811438968,-150.0,0.00018493,2]
[398539408,1765811438982,-150.0,0.00018493,2]
[398539409,1765811438996,-150.0,0.00018493,2]
[398539410,1765811439012,-150.0,0.00018493,2]
[398539411,1765811439027,-500.0,0.00018493,2]
[398539412,1765811439042,-150.0,0.00018493,2]
[398539413,1765811439057,-500.0,0.00018493,2]
[398539414,1765811439070,-432.0,0.00018493,2]
[398539415,1765811439085,-1146.2614838,0.00018495,2]
[398539416,1765811439099,-1323.39212116,0.00018495,2]
[398539417,1765811439114,-1066.49169667,0.00018495,2]
[398539418,1765811439128,-150.0,0.00018512,2]
[398539419,1765811439142,-150.0,0.00018512,2]
[398539420,1765811439156,-273.3,0.00018533,2]
[398539421,1765811439170,-1302.93,0.00018533,2]
[398539422,1765811439184,-6673.42659111,0.00018533,2]
[398539423,1765811439200,-489.23389195,0.00018533,2]
[398539424,1765811439216,-2837.32951694,0.00018533,2]
[398539425,1765811439230,-3779.05,0.00018533,2]
[398539426,1765811439244,-209.0,0.00018536,2]
[398539427,1765811439258,-150.0,0.00018564,2]
[398539428,1765811439272,-150.0,0.00018564,2]
[398539429,1765811439285,-773.27679028,0.00018591,2]
[398539430,1765811439299,-836.04580028,0.00018598,7]
[398539431,1765811439313,-168.0,0.00018603,2]
[398539432,1765811439327,-150.0,0.00018607,2]
[398539433,1765811439341,-8756.43014446,0.00018615,2]
[398539434,1765811439357,-3026.26630823,0.00018615,2]
[398539435,1765811439371,-150.0,0.00018617,2]
[398539436,1765811439385,-500.0,0.00018617,2]
[398539437,1765811439399,-362.22834177,0.00018617,2]
[398539438,1765811439414,-137.77165823,0.00018617,2]
[398539439,1765811439427,-2889.41569948,0.00018619,2]
[398539440,1765811439486,-12266.70855683,0.00018619,2]
[398539441,1765811439501,-3442.16802654,0.00018619,2]
[398539442,1765811439517,-750.2122393,0.00018619,2]
[398539443,1765811439534,-650.0,0.00018619,2]
[398539444,1765811439549,-387.4725984,0.00018619,2]
[398539445,1765811439568,-499.098222,0.00018619,2]
[398539446,1765811439584,-7350.10209915,0.00018619,2]
[398539447,1765811439597,-1521.0,0.0001862,2]
[398539448,1765811439611,-150.0,0.0001863,2]
[398539449,1765811439624,-500.0,0.0001863,2]
[398539450,1765811439637,-153.30440339,0.0001863,2]
[398539451,1765811439651,-150.0,0.0001863,2]
[398539452,1765811439663,-150.0,0.0001863,2]
[398539453,1765811439677,-500.0,0.0001863,2]
[398539454,1765811439690,-500.0,0.0001863,2]
[398539455,1765811439703,-1452.87788698,0.0001863,2]
[398539456,1765811439718,-275.12211302,0.0001863,2]
[398539457,1765811439731,-419.0,0.0001863,2]
[398539458,1765811439743,-150.0,0.0001863,2]
[398539459,1765811439755,-150.0,0.0001863,2]
[398539460,1765811439766,-150.0,0.0001863,2]
[398539461,1765811439779,-150.0,0.0001863,2]
[398539462,1765811439791,-559.988155,0.0001863,2]
[398539463,1765811439804,-500.0,0.0001863,2]
[398539464,1765811439816,-432.0,0.0001863,2]
[398539466,1765811439828,-552.37,0.0001863,8]
[398539467,1765811439841,-1477.23,0.0001863,2]
[398539468,1765811439852,-5001.59872235,0.00018659,2]
[398539472,1765811440046,-500.0,0.00018493,2]
[398539473,1765811440058,-500.0,0.0001863,2]
[398539474,1765811440069,-24.65007349,0.00018659,2]
[398539475,1765811440082,-500.0,0.00018665,2]
[398539476,1765811440094,-150.0,0.0001867,2]
[398539477,1765811440108,-150.0,0.0001867,2]
[398539478,1765811440119,-8657.73,0.0001869,2]
[398539479,1765811440131,-150.0,0.0001869,2]
[398539480,1765811440144,-117254.3494018,0.00018691,2]
[398539481,1765811440157,-177732.3113766,0.00018691,2]
[398539482,1765811440168,-5223.8103264,0.00018691,2]
[398539483,1765811440180,-11465.9665732,0.00018691,2]
[398539484,1765811440193,-38043.893083,0.00018691,2]
[398539485,1765811440205,-1801.7353184,0.000187,2]
[398539486,1765811440217,-150.0,0.00018749,2]
[398539487,1765811440229,-500.0,0.00018754,2]
[398539488,1765811440240,-500.0,0.00018754,2]
[398539489,1765811440251,-150.0,0.00018767,2]
[398539490,1765811440263,-500.0,0.00018767,2]
[398539491,1765811440275,-150.0,0.00018767,2]
[398539492,1765811440287,-500.0,0.00018767,2]
[398539493,1765811440300,-500.0,0.00018767,2]
[398539494,1765811440312,-1728.0,0.00018767,2]
[398539495,1765811440324,-419.0,0.00018767,2]
[398539496,1765811440336,-150.0,0.00018767,2]
[398539497,1765811440348,-150.0,0.00018767,2]
[398539498,1765811440360,-150.0,0.00018767,2]
[398539499,1765811440373,-153.46015243,0.00018767,2]
[398539500,1765811440385,-500.0,0.00018767,2]
[398539508,1765811442793,-432.0,0.00018767,2]
[398539511,1765811442839,-500.0,0.00018767,2]
[398539517,1765811442878,-168.0,0.00018775,2]
[398539520,1765811442900,-150.0,0.00018775,2]
[398539523,1765811442924,-150.0,0.00018775,2]
[398539525,1765811442935,-162.22892314,0.000188,2]
[398539527,1765811442945,-1521.0,0.0001881,2]
[398539529,1765811442955,-162.22892314,0.00018825,2]
[398539530,1765811442964,-162.22892314,0.0001885,2]
[398539531,1765811442973,-527.57313586,0.00018853,2]
[398539532,1765811442983,-382.94489649,0.00018872,2]
[398539533,1765811442992,-500.0,0.00018872,2]
[398539534,1765811443002,-568.74,0.00018872,2]
[398539535,1765811443011,-538.46636061,0.00018872,2]
[398539536,1765811443021,-515.35191716,0.00018872,2]
[398539537,1765811443031,-500.0,0.00018872,2]
[398539538,1765811443041,-448.45312608,0.00018872,2]
[398539539,1765811443051,-649.63247821,0.00018872,2]
[398539540,1765811443060,-500.0,0.00018872,2]
[398539542,1765811443070,-500.0,0.00018872,2]
[398539544,1765811443080,-200.0,0.00018872,2]
[398539545,1765811443090,-162.84102347,0.00018872,2]
[398539546,1765811443100,-3007.01102,0.00018872,2]
[398539547,1765811443109,-200.0,0.00018872,2]
[398539548,1765811443119,-200.0,0.00018872,2]
[398539549,1765811443129,-262.96946854,0.00018872,2]
[398539550,1765811443138,-1000.0,0.00018872,2]
[398539551,1765811443150,-437.96641227,0.00018872,2]
[398539552,1765811443160,-162.22892314,0.00018875,2]
[398539553,1765811443170,-170.46,0.00018886,2]
[398539554,1765811443180,-170.48,0.00018886,2]
[398539555,1765811443190,-500.0,0.00018891,2]
[398539556,1765811443200,-500.0,0.00018891,2]
[398539557,1765811443210,-168.0,0.00018898,2]
[398539558,1765811443219,-377.78,0.000189,3]
[398539559,1765811443229,-2000.0,0.000189,3]
[398539560,1765811443238,-2000.0,0.000189,3]
[398539561,1765811443248,-1956.0,0.000189,2]
[398539562,1765811443258,-5026.24879584,0.000189,2]
[398539563,1765811443267,-11782.69645269,0.000189,2]
[398539564,1765811443277,-773.27679028,0.000189,2]
[398539565,1765811443286,-350.80965774,0.000189,2]
[398539566,1765811443296,-150.0,0.00018904,2]
[398539567,1765811443305,-500.0,0.00018904,2]
[398539568,1765811443315,-500.0,0.00018904,2]
[398539569,1765811443325,-500.0,0.00018904,2]
[398539570,1765811443335,-1728.0,0.00018904,2]
[398539571,1765811443344,-419.0,0.00018904,2]
[398539572,1765811443354,-150.0,0.00018904,2]
[398539573,1765811443363,-200.0,0.00018904,2]
[398539574,1765811443373,-150.0,0.00018904,2]
[398539576,1765811443383,-500.0,0.00018904,2]
[398539577,1765811443393,-432.0,0.00018904,2]
[398539579,1765811443403,-500.0,0.00018904,2]
[398539580,1765811443413,-552.37,0.00018904,9]
[398539581,1765811443423,-1477.23,0.00018904,2]
[398539582,1765811443433,-150.0,0.00018904,2]
[398539584,1765811443443,-464.18,0.00018904,2]
[398539586,1765811443452,-464.18,0.00018904,2]
[398539588,1765811443462,-553.28,0.00018904,2]
[398539589,1765811443471,-221.23,0.00018904,2]
[398539590,1765811443480,-472.46,0.00018904,2]
[398539591,1765811443490,-176.71,0.00018904,2]
[398539592,1765811443500,-464.18,0.00018904,2]
[398539593,1765811443509,-1106.38,0.00018904,2]
[398539594,1765811443519,-170.46,0.00018904,2]
[398539595,1765811443529,-464.18,0.00018904,2]
[398539596,1765811443539,-340.92,0.00018904,2]
[398539597,1765811443548,-464.18,0.00018904,2]
[398539598,1765811443557,-170.46,0.00018904,2]
[398539599,1765811443566,-928.36,0.00018904,2]
[398539600,1765811443575,-464.18,0.00018904,2]
[398539601,1765811443585,-464.18,0.00018904,2]
[398539602,1765811443594,-928.3,0.00018904,2]
[398539603,1765811443604,-928.3,0.00018904,2]
[398539604,1765811443618,-928.3,0.00018904,2]
[398539605,1765811443627,-626.64,0.00018904,2]
[398539606,1765811443637,-166.66,0.00018911,2]
[398539607,1765811443650,-587.0,0.00018944,2]
[398539608,1765811443660,-587.0,0.00018944,2]
[398539609,1765811443669,-168.0,0.00018945,2]
[398539610,1765811443679,-168.0,0.0001895,2]
[398539611,1765811443690,-152.0,0.0001896,2]
[398539612,1765811443699,-168.0,0.00018972,2]
[398539613,1765811443709,-500.0,0.00018973,2]
[398539614,1765811443720,-500.0,0.00018973,2]
[398539615,1765811443729,-500.0,0.00018973,2]
[398539616,1765811443739,-509.26691978,0.00018973,2]
[398539617,1765811443748,-500.0,0.00018973,2]
[398539618,1765811443758,-500.0,0.00018973,2]
[398539619,1765811443767,-500.0,0.00018973,2]
[398539620,1765811443776,-500.0,0.00018973,2]
[398539621,1765811443785,-500.0,0.00018973,2]
[398539622,1765811443795,-500.2027477,0.00018973,2]
[398539623,1765811443804,-500.0,0.00018973,2]
[398539624,1765811443813,-162.12244894,0.00018973,2]
[398539625,1765811443823,-500.0,0.00018973,2]
[398539626,1765811443832,-500.0,0.00018973,2]
[398539627,1765811443842,-500.0,0.00018973,2]
[398539628,1765811443851,-506.23953734,0.00018973,2]
[398539629,1765811443861,-500.0,0.00018973,2]
[398539630,1765811443871,-167.58191179,0.00018973,2]
[398539631,1765811443880,-500.0,0.00018973,2]
[398539632,1765811443890,-500.0,0.00018973,2]
[398539633,1765811443903,-150.0,0.00018973,2]
[398539634,1765811443913,-500.0,0.00018973,2]
[398539635,1765811443923,-500.0,0.00018973,2]
[398539636,1765811443934,-500.0,0.00018973,2]
[398539637,1765811443944,-500.0,0.00018973,2]
[398539638,1765811443955,-500.0,0.00018973,2]
[398539639,1765811443965,-467.64408556,0.00018973,2]
[398539640,1765811443975,-500.0,0.00018973,2]
[398539641,1765811443985,-500.22943078,0.00018973,2]
[398539642,1765811443995,-500.0,0.00018973,2]
[398539643,1765811444004,-500.0,0.00018973,2]
[398539644,1765811444014,-500.0,0.00018973,2]
[398539645,1765811444023,-500.0,0.00018973,2]
[398539646,1765811444032,-500.0,0.00018973,2]
[398539647,1765811444041,-369.63901414,0.00018973,2]
[398539648,1765811444051,-176.75702751,0.00018973,2]
[398539649,1765811444060,-501.98284237,0.00018973,2]
[398539650,1765811444069,-500.0,0.00018973,2]
[398539651,1765811444078,-500.0,0.00018973,2]
[398539652,1765811444087,-500.0,0.00018973,2]
[398539653,1765811444096,-500.0,0.00018973,2]
[398539654,1765811444105,-500.0,0.00018973,2]
[398539655,1765811444114,-551.03457133,0.00018973,2]
[398539656,1765811444124,-542.27256411,0.00018973,2]
[398539657,1765811444133,-282.36091791,0.00018973,2]
[398539658,1765811444143,-500.0,0.00018973,2]
[398539659,1765811444154,-500.0,0.00018973,2]
[398539660,1765811444163,-164.6917699,0.00018973,2]
[398539661,1765811444172,-207.31663345,0.00018973,2]
[398539662,1765811444181,-500.0,0.00018973,2]
[398539663,1765811444191,-500.0,0.00018973,2]
[398539664,1765811444200,-500.0,0.00018973,2]
[398539665,1765811444209,-500.0,0.00018973,2]
[398539666,1765811444218,-328.90720081,0.00018973,2]
[398539667,1765811444227,-500.0,0.00018973,2]
[398539668,1765811444237,-500.0,0.00018973,2]
[398539669,1765811444246,-500.0,0.00018973,2]
[398539670,1765811444254,-500.0,0.00018973,2]
[398539671,1765811444262,-500.0,0.00018973,2]
[398539672,1765811444271,-500.0,0.00018973,2]
[398539673,1765811444280,-500.0,0.00018973,2]
[398539674,1765811444289,-500.0,0.00018973,2]
[398539675,1765811444298,-500.0,0.00018973,2]
[398539676,1765811444307,-500.0,0.00018973,2]
[398539677,1765811444316,-522.5837689,0.00018973,2]
[398539678,1765811444326,-500.0,0.00018973,2]
[398539679,1765811444336,-150.0,0.00018973,2]
[398539680,1765811444345,-299.32,0.00018978,2]
[398539681,1765811444354,-168.0,0.00018981,2]
[398539682,1765811444363,-198.57165543,0.00018986,2]
[398539683,1765811444372,-189.86021173,0.00018986,2]
[398539684,1765811444381,-226.22856086,0.00018986,2]
[398539685,1765811444390,-166.95510629,0.00018986,2]
[398539686,1765811444402,-150.0,0.00018986,2]
[398539687,1765811444411,-150.0,0.00018986,2]
[398539688,1765811444420,-153.15599333,0.00018986,2]
[398539689,1765811444429,-150.00000001,0.00018986,2]
[398539690,1765811444439,-218.26628836,0.00018986,2]
[398539691,1765811444448,-166.67,0.00018988,2]
[398539692,1765811444457,-840.0,0.0001899,2]
[398539693,1765811444466,-201.20663188,0.0001899,2]
[398539694,1765811444475,-201.20663188,0.0001899,2]
[398539695,1765811444484,-3015.43,0.00018998,2]
[398539696,1765811444493,-500.0,0.00018999,2]
[398539697,1765811444502,-2000.0,0.00018999,2]
[398539698,1765811444511,-500.0,0.00018999,2]
[398539699,1765811444520,-500.0,0.00018999,2]
[398539700,1765811444529,-500.0,0.00018999,2]
[398539701,1765811444538,-500.0,0.00018999,2]
[398539702,1765811444547,-500.0,0.00018999,2]
[398539703,1765811444556,-500.0,0.00018999,2]
[398539704,1765811444565,-500.0,0.00018999,2]
[398539705,1765811444575,-500.0,0.00018999,2]
[398539706,1765811444584,-500.0,0.00018999,2]
[398539707,1765811444593,-500.0,0.00018999,2]
[398539708,1765811444604,-500.0,0.00018999,2]
[398539709,1765811444621,-500.0,0.00018999,2]
[398539710,1765811444630,-500.0,0.00018999,2]
[398539711,1765811444640,-307.71551057,0.00018999,2]
[398539712,1765811444655,-500.0,0.00018999,2]
[398539713,1765811444665,-500.0,0.00018999,2]
[398539714,1765811444675,-500.0,0.00018999,2]
[398539715,1765811444685,-500.0,0.00018999,2]
[398539716,1765811444699,-500.0,0.00018999,2]
[398539717,1765811444708,-500.0,0.00018999,2]
[398539718,1765811444718,-500.0,0.00018999,2]
[398539719,1765811444727,-500.0,0.00018999,2]
[398539720,1765811444737,-500.0,0.00018999,2]
[398539721,1765811444746,-500.0,0.00018999,2]
[398539722,1765811444756,-500.0,0.00018999,2]
[398539723,1765811444765,-500.0,0.00018999,2]
[398539724,1765811444774,-500.0,0.00018999,2]
[398539725,1765811444784,-500.0,0.00018999,2]
[398539726,1765811444794,-500.0,0.00018999,2]
[398539727,1765811444803,-500.0,0.00018999,2]
[398539728,1765811444814,-594.44,0.00018999,2]
[398539729,1765811444823,-500.0,0.00018999,2]
[398539730,1765811444833,-1146.03,0.00018999,2]